bitfinex/quotes_BTCUSD_20240929
["timestamp","ask_amount","ask_price","bid_price","bid_amount"]
[1727582457568,0.68228442,65959.0,65958.0,0.07605542]
[1727582457992,0.81865006,65959.0,65958.0,0.07605542]
[1727582458216,0.68228442,65959.0,65958.0,0.07605542]
[1727582459267,0.68428442,65959.0,65958.0,0.07605542]
[1727582459922,0.84067248,65959.0,65958.0,0.07605542]
[1727582461307,0.8169005,65959.0,65958.0,0.07605542]
[1727582461534,0.54567733,65959.0,65958.0,0.07605542]
[1727582461751,0.65851244,65959.0,65958.0,0.07605542]
[1727582462385,0.54367733,65959.0,65958.0,0.07605542]
[1727582462599,0.65851244,65959.0,65958.0,0.07605542]
[1727582463697,0.37997971,65959.0,65958.0,0.07605542]
[1727582463908,0.49481482,65959.0,65958.0,0.07605542]
[1727582471809,0.58572931,65959.0,65958.0,0.07605542]
[1727582472023,0.60950106,65959.0,65958.0,0.07605542]
[1727582473636,0.76531215,65959.0,65958.0,0.07605542]
[1727582474824,0.84741215,65959.0,65958.0,0.07605542]
[1727582475521,1.04260429,65959.0,65958.0,0.07605542]
[1727582475968,0.8867932,65959.0,65958.0,0.07605542]
[1727582476313,0.69160106,65959.0,65958.0,0.07605542]
[1727582477822,0.68960106,65959.0,65958.0,0.07605542]
[1727582478152,0.61250106,65959.0,65958.0,0.07605542]
[1727582479403,0.6112427,65959.0,65958.0,0.07605542]
[1727582482399,0.58747095,65959.0,65958.0,0.07605542]
[1727582483425,0.74079451,65959.0,65958.0,0.07605542]
[1727582483826,0.74086921,65959.0,65958.0,0.07605542]
[1727582485257,0.56125887,65959.0,65958.0,0.07605542]
[1727582485478,0.67609398,65959.0,65958.0,0.07605542]
[1727582485694,0.69986583,65959.0,65958.0,0.07605542]
[1727582486407,0.54646757,65959.0,65958.0,0.07605542]
[1727582486837,0.52269572,65959.0,65958.0,0.07605542]
[1727582487515,0.31394612,65959.0,65958.0,0.07605542]
[1727582487777,0.42878123,65959.0,65958.0,0.07605542]
[1727582488020,0.58228688,65959.0,65958.0,0.07605542]
[1727582488265,0.42878123,65959.0,65958.0,0.07605542]
[1727582490093,0.45255275,65959.0,65958.0,0.07605542]
[1727582493056,0.42878123,65959.0,65958.0,0.07605542]
[1727582501303,0.42878123,65959.0,65958.0,0.15285542]
[1727582509003,0.45255251,65959.0,65958.0,0.15285542]
[1727582515108,0.42878123,65959.0,65958.0,0.15285542]
[1727582518430,0.45255251,65959.0,65958.0,0.15285542]
[1727582518604,0.42878123,65959.0,65958.0,0.15285542]
[1727582520727,0.31394612,65959.0,65958.0,0.15285542]
[1727582521856,0.33771747,65959.0,65958.0,0.15285542]
[1727582522306,0.33771747,65959.0,65958.0,0.07605542]
[1727582526996,0.31394612,65959.0,65958.0,0.07605542]
[1727582530241,0.33771746,65959.0,65958.0,0.07605542]
[1727582531337,0.31394612,65959.0,65958.0,0.07605542]
[1727582559001,0.33771747,65959.0,65958.0,0.07605542]
[1727582561428,0.31394612,65959.0,65958.0,0.07605542]
[1727582568874,0.33771757,65959.0,65958.0,0.07605542]
[1727582574340,0.31394612,65959.0,65958.0,0.07605542]
[1727582576297,0.55015598,65959.0,65958.0,0.07605542]
[1727582577653,0.57392788,65959.0,65958.0,0.07605542]
[1727582578747,0.55015598,65959.0,65958.0,0.07605542]
[1727582580593,0.55215598,65959.0,65958.0,0.07605542]
[1727582580814,0.55015598,65959.0,65958.0,0.07605542]
[1727582583140,0.55215598,65959.0,65958.0,0.07605542]
[1727582583299,0.55015598,65959.0,65958.0,0.07605542]
[1727582590449,0.57392793,65959.0,65958.0,0.07605542]
[1727582594046,0.57392793,65959.0,65958.0,0.07387089]
[1727582594925,0.55015598,65959.0,65958.0,0.07387089]
[1727582597194,0.40273567,65959.0,65958.0,0.07387089]
[1727582598202,0.40273567,65959.0,65958.0,0.001654]
[1727582598638,0.42878123,65959.0,65958.0,0.001654]
[1727582599434,0.4286751,65959.0,65958.0,0.001654]
[1727582599661,0.45244705,65959.0,65958.0,0.001654]
[1727582602581,0.45244705,65959.0,65958.0,0.075574]
[1727582603229,0.4286751,65959.0,65958.0,0.075574]
[1727582607724,0.45244694,65959.0,65958.0,0.075574]
[1727582608159,0.52966599,65959.0,65958.0,0.075574]
[1727582608892,0.62545554,65959.0,65958.0,0.075574]
[1727582609118,0.67507096,65959.0,65958.0,0.075574]
[1727582610221,0.67507096,65959.0,65952.0,0.001654]
[1727582610222,0.007,65953.0,65952.0,0.001654]
[1727582610462,0.36646911,65948.0,65941.0,0.0928]
[1727582610684,0.46648242,65948.0,65941.0,0.1745]
[1727582610944,0.38946911,65948.0,65941.0,0.1745]
[1727582611657,0.39146911,65948.0,65941.0,0.1745]
[1727582611888,0.38946911,65948.0,65941.0,0.1745]
[1727582612123,0.40146911,65948.0,65941.0,0.1745]
[1727582612350,0.54289691,65948.0,65941.0,0.1745]
[1727582613262,0.55389691,65948.0,65947.0,0.002654]
[1727582613979,0.67133808,65948.0,65947.0,0.002654]
[1727582616886,0.86564689,65948.0,65947.0,0.002654]
[1727582617101,0.67133808,65948.0,65947.0,0.002654]
[1727582620451,0.67979243,65948.0,65947.0,0.002654]
[1727582621580,0.77319243,65948.0,65947.0,0.002654]
[1727582631325,0.67979243,65948.0,65947.0,0.002654]
[1727582634920,0.67779243,65948.0,65947.0,0.002654]
[1727582638667,0.67979243,65948.0,65947.0,0.002654]
[1727582640835,0.87413054,65948.0,65947.0,0.002654]
[1727582641043,0.67979243,65948.0,65947.0,0.002654]
[1727582641979,0.67779243,65948.0,65947.0,0.002654]
[1727582642212,0.67979243,65948.0,65947.0,0.002654]
[1727582643357,0.67888811,65948.0,65947.0,0.002654]
[1727582648602,0.67688811,65948.0,65947.0,0.002654]
[1727582648822,0.67888811,65948.0,65947.0,0.002654]
[1727582652850,0.53946031,65948.0,65947.0,0.002654]
[1727582654053,0.53746031,65948.0,65947.0,0.002654]
[1727582654289,0.44879544,65948.0,65947.0,0.083754]
[1727582655880,0.45079544,65948.0,65947.0,0.083754]
[1727582656600,0.44879544,65948.0,65947.0,0.083754]
[1727582658507,0.44879544,65948.0,65947.0,0.075754]
[1727582658956,0.44379544,65948.0,65947.0,0.075754]
[1727582666570,0.32079544,65948.0,65947.0,0.075754]
[1727582666993,0.42079544,65948.0,65947.0,0.075754]
[1727582668331,0.44379544,65948.0,65947.0,0.075754]
[1727582669512,0.49281506,65948.0,65947.0,0.075754]
[1727582669979,0.49281506,65948.0,65947.0,0.077408]
[1727582670291,0.49364206,65948.0,65947.0,0.077408]
[1727582670631,0.44462244,65948.0,65947.0,0.077408]
[1727582690125,0.44662244,65948.0,65947.0,0.077408]
[1727582690338,0.44462244,65948.0,65947.0,0.077408]
[1727582690755,0.42084614,65948.0,65947.0,0.077408]
[1727582692543,0.51151101,65948.0,65947.0,0.001654]
[1727582692761,0.66789907,65948.0,65947.0,0.001654]
[1727582694134,0.68967518,65948.0,65947.0,0.001654]
[1727582695258,0.66589907,65948.0,65947.0,0.001654]
[1727582695984,0.66789907,65948.0,65947.0,0.001654]
[1727582698443,0.8637168,65948.0,65947.0,0.001654]
[1727582698863,0.66789907,65948.0,65947.0,0.001654]
[1727582699958,0.69167522,65948.0,65947.0,0.001654]
[1727582702228,0.66789907,65948.0,65947.0,0.001654]
[1727582705443,0.69167516,65948.0,65947.0,0.001654]
[1727582705928,0.41845199,65948.0,65947.0,0.001654]
[1727582706173,0.5332871,65948.0,65947.0,0.001654]
[1727582706651,0.50951101,65948.0,65947.0,0.001654]
[1727582709409,0.3946759,65948.0,65947.0,0.001654]
[1727582709668,0.50951101,65948.0,65947.0,0.001654]
[1727582714242,0.6624349,65948.0,65947.0,0.001654]
[1727582721073,0.6644349,65948.0,65947.0,0.001654]
[1727582722289,1.03642041,65948.0,65947.0,0.001654]
[1727582722497,1.25602738,65948.0,65947.0,0.001654]
[1727582722716,1.03165729,65948.0,65947.0,0.001654]
[1727582722936,1.00788097,65948.0,65947.0,0.001654]
[1727582723161,1.03643702,65948.0,65947.0,0.001654]
[1727582723366,1.23226925,65948.0,65947.0,0.001654]
[1727582723810,1.00788097,65948.0,65947.0,0.001654]
[1727582725191,0.258641,65945.0,65944.0,1e-06]
[1727582725399,0.80247779,65945.0,65944.0,1e-06]
[1727582725621,0.82358705,65945.0,65944.0,1e-06]
[1727582726531,0.84958705,65945.0,65944.0,1e-06]
[1727582727862,0.83558705,65945.0,65944.0,1e-06]
[1727582728080,0.9630118,65945.0,65944.0,1e-06]
[1727582728296,0.9186655,65945.0,65944.0,1e-06]
[1727582728509,1.1568397,65945.0,65944.0,1e-06]
[1727582728721,1.17084001,65945.0,65944.0,1e-06]
[1727582729135,1.15684001,65945.0,65944.0,1e-06]
[1727582729349,1.17084001,65945.0,65944.0,1e-06]
[1727582729975,1.19461861,65945.0,65944.0,1e-06]
[1727582730814,1.19439756,65945.0,65944.0,1e-06]
[1727582731223,0.94650155,65945.0,65944.0,1e-06]
[1727582737835,0.97028023,65945.0,65944.0,1e-06]
[1727582741098,0.97193423,65945.0,65944.0,1e-06]
[1727582741490,0.94815555,65945.0,65944.0,1e-06]
[1727582743136,0.274666,65934.0,65931.0,0.0795]
[1727582743338,0.63165837,65934.0,65931.0,0.0795]
[1727582743549,0.63365837,65934.0,65933.0,0.06731725]
[1727582743782,0.48016598,65934.0,65933.0,0.000827]
[1727582743990,0.60891255,65934.0,65933.0,0.000827]
[1727582744402,0.63091255,65934.0,65933.0,0.000827]
[1727582744605,0.61991255,65934.0,65933.0,0.000827]
[1727582744809,0.62291255,65934.0,65933.0,0.000827]
[1727582745179,0.62191255,65934.0,65933.0,0.000827]
[1727582745406,0.63591255,65934.0,65933.0,0.000827]
[1727582745633,0.63391255,65934.0,65933.0,0.000827]
[1727582746559,0.64243364,65934.0,65933.0,0.000827]
[1727582748479,0.67121451,65934.0,65933.0,0.000827]
[1727582748695,0.67321451,65934.0,65933.0,0.000827]
[1727582749640,0.65921451,65934.0,65933.0,0.000827]
[1727582750089,0.66021451,65934.0,65933.0,0.000827]
[1727582750310,0.64621451,65934.0,65933.0,0.000827]
[1727582750521,0.67421451,65934.0,65933.0,0.000827]
[1727582750972,0.66021451,65934.0,65933.0,0.000827]
[1727582751181,0.67421451,65934.0,65933.0,0.000827]
[1727582751387,0.65043364,65934.0,65933.0,0.000827]
[1727582754881,0.84694052,65934.0,65933.0,0.000827]
[1727582755091,0.65043364,65934.0,65933.0,0.000827]
[1727582757319,0.65043364,65934.0,65933.0,1e-06]
[1727582757532,0.70082733,65934.0,65933.0,1e-06]
[1727582760320,0.67282733,65934.0,65933.0,1e-06]
[1727582760602,0.70082733,65934.0,65933.0,1e-06]
[1727582761351,0.67282733,65934.0,65933.0,1e-06]
[1727582761829,0.58599222,65934.0,65933.0,1e-06]
[1727582762028,0.70082733,65934.0,65933.0,1e-06]
[1727582768006,0.72460956,65934.0,65933.0,1e-06]
[1727582770083,0.72260956,65934.0,65933.0,1e-06]
[1727582770739,0.72460956,65934.0,65933.0,1e-06]
[1727582770939,0.73460956,65934.0,65933.0,1e-06]
[1727582772264,0.73260956,65934.0,65933.0,1e-06]
[1727582773491,0.70882733,65934.0,65933.0,1e-06]
[1727582774223,0.71082733,65934.0,65933.0,1e-06]
[1727582776112,0.59599222,65934.0,65933.0,1e-06]
[1727582776352,0.59399222,65934.0,65933.0,1e-06]
[1727582776600,0.70882733,65934.0,65933.0,1e-06]
[1727582776883,0.37350811,65931.0,65930.0,1e-06]
[1727582777081,0.39450811,65931.0,65930.0,1e-06]
[1727582777298,0.48317298,65931.0,65930.0,1e-06]
[1727582778438,0.49717298,65931.0,65930.0,1e-06]
[1727582778652,0.69390541,65931.0,65930.0,1e-06]
[1727582778866,0.82320259,65931.0,65930.0,1e-06]
[1727582779290,0.83720259,65931.0,65930.0,1e-06]
[1727582781308,0.86098607,65931.0,65930.0,1e-06]
[1727582781982,0.86086952,65931.0,65930.0,1e-06]
[1727582784694,0.83708604,65931.0,65930.0,1e-06]
[1727582785780,0.83714647,65931.0,65930.0,1e-06]
[1727582787873,0.86093012,65931.0,65930.0,1e-06]
[1727582788254,0.66425381,65931.0,65930.0,1e-06]
[1727582788476,0.86093012,65931.0,65930.0,1e-06]
[1727582789039,0.83714647,65931.0,65930.0,1e-06]
[1727582790571,1.06090514,65931.0,65930.0,1e-06]
[1727582790803,0.83714647,65931.0,65930.0,1e-06]
[1727582791040,0.72231136,65931.0,65930.0,1e-06]
[1727582791319,1.06090514,65931.0,65930.0,1e-06]
[1727582792153,1.0846885,65931.0,65930.0,1e-06]
[1727582793509,1.06090514,65931.0,65930.0,1e-06]
[1727582794211,0.83714647,65931.0,65930.0,1e-06]
[1727582796440,0.86237471,65931.0,65930.0,1e-06]
[1727582797988,0.83859131,65931.0,65930.0,1e-06]
[1727582800056,0.25868,65928.0,65927.0,0.000827]
[1727582800302,0.35689905,65928.0,65927.0,0.000827]
[1727582800930,0.35889905,65928.0,65927.0,0.000827]
[1727582801137,0.35689905,65928.0,65927.0,0.000827]
[1727582801345,0.37089905,65928.0,65927.0,0.000827]
[1727582802406,0.60898738,65928.0,65927.0,0.000827]
[1727582802613,0.38489905,65928.0,65927.0,0.000827]
[1727582803261,0.60898738,65928.0,65927.0,0.000827]
[1727582804567,0.63277105,65928.0,65927.0,0.000827]
[1727582806526,0.63484309,65928.0,65927.0,0.000827]
[1727582807016,0.63284309,65928.0,65927.0,0.000827]
[1727582809318,0.60905942,65928.0,65927.0,0.000827]
[1727582811545,0.63284312,65928.0,65927.0,0.000827]
[1727582812440,0.63484312,65928.0,65927.0,0.000827]
[1727582813776,0.61105942,65928.0,65927.0,0.000827]
[1727582815810,0.63484314,65928.0,65927.0,0.000827]
[1727582816478,0.60896556,65928.0,65927.0,0.000827]
[1727582816690,0.40868277,65928.0,65927.0,0.000827]
[1727582816896,0.41068277,65928.0,65927.0,0.000827]
[1727582818643,0.49934764,65928.0,65927.0,1e-06]
[1727582818873,0.82246554,65928.0,65927.0,1e-06]
[1727582820217,0.79868182,65928.0,65927.0,1e-06]
[1727582823625,0.8224662,65928.0,65927.0,1e-06]
[1727582824651,0.80956316,65928.0,65927.0,1e-06]
[1727582824840,0.82356316,65928.0,65927.0,1e-06]
[1727582824994,0.80956316,65928.0,65927.0,1e-06]
[1727582825393,0.82356316,65928.0,65927.0,1e-06]
[1727582825620,0.80956316,65928.0,65927.0,1e-06]
[1727582826041,0.82356316,65928.0,65927.0,1e-06]
[1727582826820,0.82356393,65928.0,65927.0,1e-06]
[1727582827257,0.87525484,65928.0,65927.0,1e-06]
[1727582827564,0.85147046,65928.0,65927.0,1e-06]
[1727582829045,0.26653411,65920.0,65919.0,0.0769]
[1727582829252,0.53277329,65920.0,65919.0,0.0769]
[1727582829458,0.53274745,65920.0,65919.0,0.0769]
[1727582830549,0.57053289,65920.0,65919.0,0.0769]
[1727582830939,0.55653289,65920.0,65919.0,0.0769]
[1727582831139,0.57053289,65920.0,65919.0,0.0769]
[1727582831414,0.58353289,65920.0,65919.0,0.0769]
[1727582831612,0.55974745,65920.0,65919.0,0.0769]
[1727582831823,0.54674745,65920.0,65919.0,0.0769]
[1727582832241,0.71713551,65920.0,65919.0,0.0769]
[1727582832668,0.91763418,65920.0,65919.0,0.0769]
[1727582834367,0.91762127,65920.0,65919.0,0.0769]
[1727582835036,0.94140663,65920.0,65919.0,0.0769]
[1727582836103,0.91762127,65920.0,65919.0,0.0769]
[1727582836734,0.9260365,65920.0,65919.0,0.0769]
[1727582839138,0.94982187,65920.0,65919.0,0.0769]
[1727582839571,0.79343381,65920.0,65919.0,0.0769]
[1727582839787,0.59294267,65920.0,65919.0,0.077727]
[1727582839998,0.57894267,65920.0,65919.0,0.077727]
[1727582840214,0.56494267,65920.0,65919.0,0.077727]
[1727582840433,0.57894267,65920.0,65919.0,0.077727]
[1727582840660,0.69442472,65920.0,65919.0,0.077727]
[1727582840915,0.70842472,65920.0,65919.0,0.077727]
[1727582841151,0.90891586,65920.0,65919.0,0.077727]
[1727582841378,0.87113049,65920.0,65919.0,0.077727]
[1727582841838,0.88513049,65920.0,65919.0,0.077727]
[1727582844175,0.88515901,65920.0,65919.0,0.077727]
[1727582844595,0.90894438,65920.0,65919.0,0.077727]
[1727582845918,0.88515901,65920.0,65919.0,0.077727]
[1727582847915,0.85715901,65920.0,65919.0,0.077727]
[1727582848136,0.87115901,65920.0,65919.0,0.077727]
[1727582848609,0.96182388,65920.0,65919.0,0.077727]
[1727582848830,0.98560958,65920.0,65919.0,0.077727]
[1727582849491,0.97160958,65920.0,65919.0,0.077727]
[1727582849729,1.21751616,65920.0,65919.0,0.000827]
[1727582849959,1.21751616,65920.0,65919.0,1e-06]
[1727582849960,1.28033552,65920.0,65919.0,1e-06]
[1727582850169,0.002,65917.0,65912.0,0.0767]
[1727582850413,0.38955011,65913.0,65912.0,0.0767]
[1727582850629,0.53276995,65913.0,65912.0,0.0767]
[1727582851310,0.55655745,65913.0,65912.0,0.0767]
[1727582851559,0.53276995,65913.0,65912.0,0.0767]
[1727582852234,0.38105495,65913.0,65892.0,0.22856058]
[1727582852447,0.274728,65907.0,65906.0,0.0767]
[1727582852669,0.41794784,65907.0,65906.0,0.0767]
[1727582852884,0.274728,65907.0,65906.0,0.0767]
[1727582853122,0.41922936,65907.0,65906.0,0.0767]
[1727582853360,0.274731,65906.0,65902.0,0.1743]
[1727582853590,0.53406747,65906.0,65902.0,0.1743]
[1727582854485,0.5578575,65906.0,65902.0,0.1743]
[1727582854745,0.5578575,65906.0,65902.0,0.0767]
[1727582854961,0.5648575,65906.0,65897.0,0.0976]
[1727582855153,0.68033955,65906.0,65897.0,0.0976]
[1727582855410,0.65654952,65906.0,65905.0,1e-06]
[1727582855667,0.7969053,65906.0,65905.0,1e-06]
[1727582856155,1.00441308,65906.0,65905.0,1e-06]
[1727582856607,0.99741308,65906.0,65905.0,1e-06]
[1727582856829,1.01141308,65906.0,65905.0,1e-06]
[1727582857549,0.96817836,65906.0,65905.0,1e-06]
[1727582858004,0.98217836,65906.0,65905.0,1e-06]
[1727582858454,1.00597101,65906.0,65905.0,1e-06]
[1727582864478,0.8911359,65906.0,65905.0,1e-06]
[1727582864722,0.80546323,65906.0,65905.0,1e-06]
[1727582865159,1.00597101,65906.0,65905.0,1e-06]
[1727582865595,0.68498898,65906.0,65905.0,1e-06]
[1727582865809,0.59931631,65906.0,65905.0,1e-06]
[1727582866971,0.75249355,65906.0,65905.0,1e-06]
[1727582867845,0.75266933,65906.0,65905.0,1e-06]
[1727582871649,0.72887668,65906.0,65905.0,1e-06]
[1727582873759,0.7648454,65906.0,65905.0,1e-06]
[1727582874896,0.78863698,65906.0,65905.0,1e-06]
[1727582875995,0.7648454,65906.0,65905.0,1e-06]
[1727582876218,0.72887668,65906.0,65905.0,1e-06]
[1727582877772,0.57570721,65906.0,65905.0,1e-06]
[1727582877995,0.56170721,65906.0,65905.0,1e-06]
[1727582878212,0.56336321,65906.0,65905.0,1e-06]
[1727582878436,0.71653268,65906.0,65905.0,1e-06]
[1727582879097,0.73053268,65906.0,65905.0,1e-06]
[1727582879355,0.60115451,65906.0,65905.0,1e-06]
[1727582879592,0.74032398,65906.0,65905.0,1e-06]
[1727582879815,0.75432398,65906.0,65905.0,1e-06]
[1727582880297,0.74032398,65906.0,65905.0,1e-06]
[1727582881007,0.75332398,65906.0,65905.0,1e-06]
[1727582881700,0.79294033,65906.0,65905.0,1e-06]
[1727582883026,0.72953268,65906.0,65905.0,1e-06]
[1727582883480,0.72955114,65906.0,65905.0,1e-06]
[1727582884322,0.57636321,65906.0,65905.0,1e-06]
[1727582885001,0.60015462,65906.0,65905.0,1e-06]
[1727582885886,0.60091067,65906.0,65905.0,1e-06]
[1727582886097,0.57711926,65906.0,65905.0,1e-06]
[1727582886943,0.4316783,65906.0,65905.0,1e-06]
[1727582887155,0.57713943,65906.0,65905.0,1e-06]
[1727582888046,0.69653382,65906.0,65905.0,1e-06]
[1727582889224,0.7203252,65906.0,65905.0,1e-06]
[1727582890801,0.720287,65906.0,65905.0,1e-06]
[1727582891435,0.69649562,65906.0,65905.0,1e-06]
[1727582892331,0.57710123,65906.0,65905.0,1e-06]
[1727582893181,0.56410123,65906.0,65905.0,1e-06]
[1727582893597,0.57810123,65906.0,65905.0,1e-06]
[1727582893827,0.46326612,65906.0,65905.0,1e-06]
[1727582894041,0.56410123,65906.0,65905.0,1e-06]
[1727582894492,0.57810123,65906.0,65905.0,1e-06]
[1727582894737,0.57389259,65906.0,65905.0,1e-06]
[1727582894953,0.58789259,65906.0,65905.0,1e-06]
[1727582895603,0.60217195,65906.0,65905.0,1e-06]
[1727582895848,0.57838059,65906.0,65905.0,1e-06]
[1727582896324,0.56438059,65906.0,65905.0,1e-06]
[1727582896543,0.57838059,65906.0,65905.0,1e-06]
[1727582897206,0.56438059,65906.0,65905.0,1e-06]
[1727582897439,0.57838059,65906.0,65905.0,1e-06]
[1727582899001,0.60217185,65906.0,65905.0,1e-06]
[1727582899949,0.58817185,65906.0,65905.0,1e-06]
[1727582900394,0.60217185,65906.0,65905.0,1e-06]
[1727582900803,0.58817185,65906.0,65905.0,1e-06]
[1727582901226,0.60217185,65906.0,65905.0,1e-06]
[1727582901438,0.59717185,65906.0,65905.0,1e-06]
[1727582902100,0.57338059,65906.0,65905.0,1e-06]
[1727582908284,0.71576865,65906.0,65905.0,1e-06]
[1727582908496,0.75355991,65906.0,65905.0,1e-06]
[1727582908722,0.59717185,65906.0,65905.0,1e-06]
[1727582909192,0.58317185,65906.0,65905.0,1e-06]
[1727582909409,0.59717185,65906.0,65905.0,1e-06]
[1727582910065,0.59846797,65906.0,65905.0,1e-06]
[1727582910571,0.58446797,65906.0,65905.0,1e-06]
[1727582911287,0.59846797,65906.0,65905.0,1e-06]
[1727582919951,0.59842933,65906.0,65905.0,1e-06]
[1727582925021,0.75481739,65906.0,65905.0,1e-06]
[1727582925234,0.73102613,65906.0,65905.0,1e-06]
[1727582925969,0.93676981,65906.0,65905.0,1e-06]
[1727582926182,0.57463807,65906.0,65905.0,1e-06]
[1727582928450,0.59842939,65906.0,65905.0,1e-06]
[1727582929821,0.574666,65906.0,65905.0,1e-06]
[1727582932697,0.38362186,65906.0,65905.0,0.176101]
[1727582932917,0.49845697,65906.0,65905.0,0.176101]
[1727582933652,0.53728955,65906.0,65905.0,0.176101]
[1727582933859,0.35216567,65906.0,65905.0,0.176101]
[1727582934080,0.45216567,65906.0,65905.0,0.176101]
[1727582934307,0.4283747,65906.0,65905.0,0.176101]
[1727582934533,0.42931004,65906.0,65905.0,0.176101]
[1727582934751,0.41531004,65906.0,65905.0,0.176101]
[1727582935005,0.42626133,65906.0,65905.0,0.176101]
[1727582935438,0.41526133,65906.0,65905.0,0.176101]
[1727582935658,0.42226133,65906.0,65905.0,0.176101]
[1727582936165,0.40826133,65906.0,65905.0,0.176101]
[1727582936869,0.41726133,65906.0,65905.0,0.176101]
[1727582937106,0.40126133,65906.0,65905.0,0.176101]
[1727582937572,0.41926133,65906.0,65905.0,0.176101]
[1727582937805,0.40926133,65906.0,65905.0,0.176101]
[1727582938023,0.40126133,65906.0,65905.0,0.176101]
[1727582938270,0.40826133,65906.0,65905.0,0.176101]
[1727582938730,0.40126133,65906.0,65905.0,0.176101]
[1727582939183,0.41526133,65906.0,65905.0,0.176101]
[1727582939877,0.42226133,65906.0,65905.0,0.176101]
[1727582940780,0.44604997,65906.0,65905.0,0.176101]
[1727582942119,0.42504997,65906.0,65905.0,0.176101]
[1727582942597,0.54474445,65906.0,65905.0,0.176101]
[1727582942816,0.29301345,65906.0,65905.0,0.176101]
[1727582943041,0.012656,65906.0,65905.0,0.176101]
[1727582943315,0.05813713,65906.0,65905.0,0.176101]
[1727582943524,0.001656,65906.0,65905.0,0.22998131]
[1727582943754,0.002656,65906.0,65905.0,0.30459692]
[1727582944000,0.006656,65906.0,65905.0,0.30763112]
[1727582944238,0.006656,65906.0,65905.0,0.45936412]
[1727582944475,0.002656,65906.0,65905.0,0.45632992]
[1727582944695,0.003656,65906.0,65905.0,0.45632992]
[1727582945352,0.003656,65906.0,65905.0,0.45932992]
[1727582945589,0.002656,65906.0,65905.0,0.45632992]
[1727582945823,0.002656,65906.0,65905.0,0.46032992]
[1727582947152,0.003656,65906.0,65905.0,0.46032992]
[1727582947595,0.002656,65906.0,65905.0,0.46032992]
[1727582947811,0.003656,65906.0,65905.0,0.46032992]
[1727582950334,0.002656,65906.0,65905.0,0.46115792]
[1727582950567,0.003656,65906.0,65905.0,0.46115792]
[1727582951012,0.002656,65906.0,65905.0,0.46115792]
[1727582951225,0.003656,65906.0,65905.0,0.46115792]
[1727582951486,0.002656,65906.0,65905.0,0.45715792]
[1727582951919,0.003656,65906.0,65905.0,0.46015792]
[1727582952134,0.003656,65906.0,65905.0,0.45715792]
[1727582952357,0.003656,65906.0,65905.0,0.46015792]
[1727582952574,0.004656,65906.0,65905.0,0.46015792]
[1727582954394,0.004656,65906.0,65905.0,0.38554231]
[1727582956402,0.08447925,65906.0,65905.0,0.38554231]
[1727582967413,0.08347925,65906.0,65905.0,0.38554231]
[1727582967833,0.08147925,65906.0,65905.0,0.38254231]
[1727582968252,0.08247925,65906.0,65905.0,0.38554231]
[1727582968481,0.08247925,65906.0,65905.0,0.38254231]
[1727582968701,0.08347925,65906.0,65905.0,0.38554231]
[1727582968914,0.08447925,65906.0,65905.0,0.38554231]
[1727582969147,0.08347925,65906.0,65905.0,0.38554231]
[1727582969377,0.08447925,65906.0,65905.0,0.38554231]
[1727582969592,0.08247925,65906.0,65905.0,0.38254231]
[1727582970034,0.08247925,65906.0,65905.0,0.38554231]
[1727582970242,0.08347925,65906.0,65905.0,0.38554231]
[1727582971073,0.08247925,65906.0,65905.0,0.38254231]
[1727582971459,0.08347925,65906.0,65905.0,0.38554231]
[1727582972192,0.08247925,65906.0,65905.0,0.38554231]
[1727582972610,0.08347925,65906.0,65905.0,0.38554231]
[1727582975208,0.08147925,65906.0,65905.0,0.38254231]
[1727582975689,0.08147925,65906.0,65905.0,0.38554231]
[1727582975690,0.08347925,65906.0,65905.0,0.38554231]
[1727582979358,0.08247925,65906.0,65905.0,0.38554231]
[1727582980277,0.08347925,65906.0,65905.0,0.38554231]
[1727582980537,0.08247925,65906.0,65905.0,0.38254231]
[1727582980748,0.08247925,65906.0,65905.0,0.38554231]
[1727582980965,0.08347925,65906.0,65905.0,0.38554231]
[1727582981193,0.08347925,65906.0,65905.0,0.38254231]
[1727582981400,0.08347925,65906.0,65905.0,0.38554231]
[1727582981626,0.08447925,65906.0,65905.0,0.38554231]
[1727582981834,0.08247925,65906.0,65905.0,0.38254231]
[1727582982052,0.08347925,65906.0,65905.0,0.38554231]
[1727582982264,0.08247925,65906.0,65905.0,0.38254231]
[1727582982507,0.08347925,65906.0,65905.0,0.38254231]
[1727582982934,0.08247925,65906.0,65905.0,0.38254231]
[1727582983162,0.08347925,65906.0,65905.0,0.38254231]
[1727582984044,0.08447925,65906.0,65905.0,0.38554231]
[1727582984501,0.08247925,65906.0,65905.0,0.38254231]
[1727582984739,0.08347925,65906.0,65905.0,0.38554231]
[1727583008300,0.08347925,65906.0,65905.0,0.2933013]
[1727583008525,0.23521025,65906.0,65905.0,0.0598683]
[1727583008746,0.32701025,65906.0,65905.0,0.0598683]
[1727583008961,0.56719649,65906.0,65905.0,0.003828]
[1727583009176,0.4760572,65906.0,65905.0,0.003828]
[1727583009401,0.56716391,65906.0,65905.0,0.003828]
[1727583009830,0.56698764,65906.0,65905.0,0.003828]
[1727583010315,0.47588078,65906.0,65905.0,0.003828]
[1727583010988,0.47488078,65906.0,65905.0,0.000828]
[1727583011207,0.32601025,65906.0,65905.0,0.000828]
[1727583011492,0.56680777,65906.0,65905.0,0.003828]
[1727583011710,0.56580777,65906.0,65905.0,0.003828]
[1727583011931,0.47470091,65906.0,65905.0,0.003828]
[1727583012137,0.47570091,65906.0,65905.0,0.003828]
[1727583012345,0.56677209,65906.0,65905.0,0.003828]
[1727583013280,0.64217209,65906.0,65905.0,0.003828]
[1727583013499,0.68085668,65906.0,65905.0,0.003828]
[1727583014246,0.68085668,65906.0,65905.0,0.000828]
[1727583014247,0.67985668,65906.0,65905.0,0.000828]
[1727583014484,0.55110091,65906.0,65905.0,0.000828]
[1727583014705,0.6877612,65906.0,65905.0,0.003828]
[1727583014950,0.84414926,65906.0,65905.0,0.003828]
[1727583015179,0.70748897,65906.0,65905.0,0.000828]
[1727583015368,0.70648897,65906.0,65905.0,0.000828]
[1727583015834,0.70748897,65906.0,65905.0,0.000828]
[1727583016053,0.73148897,65906.0,65905.0,0.000828]
[1727583016274,0.67410091,65906.0,65905.0,0.000828]
[1727583017202,0.67310091,65906.0,65905.0,0.000828]
[1727583017423,0.67410091,65906.0,65905.0,0.000828]
[1727583017654,0.67610091,65906.0,65905.0,0.000828]
[1727583017930,0.67410091,65906.0,65905.0,0.000828]
[1727583018160,0.68110091,65906.0,65905.0,0.000828]